Cogmind - Beta 12 @@@ ROGUE MODE // 2023.09.11 @ 23:03:15 Player: Ivan Result: Destroyed by G-50 Soldier with Heavy Laser Performance ------------- Evolutions (2) 1000 Regions Visited (7) 1400 Robots Destroyed (109) 545 Value Destroyed (2767) 2767 Prototype IDs (3) 60 Alien Tech Used (0) 0 Bonus (49) 49 TOTAL SCORE: 5821 Bonus ------- High Alert Combat Kills 49 Cogmind --------- Core Integrity 0/550 Matter 300/300 Energy 221/290 System Corruption 0% Temperature Cool (13) Movement Treading (243) Ox1 Location -8/Materials Parts ------- > --- POWER (1) -------- Reinforced Deuterium Engine > --- PROPULSION (3) --- Light Treads Light Treads Armored Treads > --- UTILITY (5) ------ Huge Storage Unit Targeting Computer Shield Generator Hacking Suite > --- WEAPON (2) ------- Improved Assault Rifle Improved Assault Rifle > --- INVENTORY (25) --- Light Deuterium Engine Light Nuclear Core Light Nuclear Core Flight Unit Flight Unit Cesium-ion Thruster Structural Scanner Machine Analyzer Improved Signal Interpreter ECM Suite Graphene Brace Improved Assault Rifle Mining Laser Scythe Peak State ------------ > --- POWER ------------ Reinforced Deuterium Engine > --- PROPULSION ------- Light Treads Light Treads Armored Treads > --- UTILITY ---------- Huge Storage Unit Targeting Computer Shield Generator Hacking Suite > --- WEAPON ----------- Improved Assault Rifle Improved Assault Rifle > --- INVENTORY -------- Light Deuterium Engine Light Nuclear Core Flight Unit Flight Unit Cesium-ion Thruster Structural Scanner Machine Analyzer Improved Signal Interpreter ECM Suite Graphene Brace Improved Assault Rifle Mining Laser Scythe [Rating: 25] Favorites ----------- Power Heavy Ion Engine Engine Heavy Ion Engine Propulsion Light Treads Treads Light Treads Wheel Wheel Utility Huge Storage Unit Device Shield Generator Storage Huge Storage Unit Processor Improved Targeting Computer Hackware Hacking Suite Protection Hardened Medium Armor Plating Weapon Improved Assault Rifle Energy Gun Small Laser Ballistic Gun Improved Assault Rifle Launcher Grenade Launcher Special Weapon Mining Laser Build | -11 -10 -10 -9 -9 -9 -8 -8 ------- Run | Jun Mat Min Mat Min Exi Min Mat Slots Evolved 4 | . . . 2 . . . 2 Power . | . . . . . . . . Propulsion 1 | . . . 1 . . . . Utility 3 | . . . 1 . . . 2 Weapon . | . . . . . . . . Parts Attached 76 | 7 13 3 29 4 . 5 15 Power 9 | 1 2 . 3 . . . 3 Engine 9 | 1 2 . 3 . . . 3 Core . | . . . . . . . . Reactor . | . . . . . . . . Propulsion 28 | 2 4 . 12 1 . 5 4 Treads 23 | 2 4 . 10 1 . 2 4 Leg . | . . . . . . . . Wheel 5 | . . . 2 . . 3 . Hover . | . . . . . . . . Flight . | . . . . . . . . Utility 13 | 1 2 1 6 . . . 3 Device 2 | . . 1 . . . . 1 Storage 4 | 1 2 . 1 . . . . Processor 2 | . . . 1 . . . 1 Hackware 1 | . . . . . . . 1 Protection 4 | . . . 4 . . . . Artifact . | . . . . . . . . Weapon 26 | 3 5 2 8 3 . . 5 Energy Gun 2 | 2 . . . . . . . Energy Cannon . | . . . . . . . . Ballistic Gun 17 | 1 4 . 6 2 . . 4 Ballistic Cannon . | . . . . . . . . Launcher 4 | . . 1 2 . . . 1 Special Weapon 3 | . 1 1 . 1 . . . Impact Weapon . | . . . . . . . . Slashing Weapon . | . . . . . . . . Piercing Weapon . | . . . . . . . . Special Melee Weapon . | . . . . . . . . Unidentified Prototypes 3 | . . 1 2 . . . . Parts Lost 20 | . . . 10 1 . 1 8 Power 1 | . . . . . . . 1 Propulsion 8 | . . . 4 1 . 1 2 Utility 5 | . . . 4 . . . 1 Weapon 6 | . . . 2 . . . 4 Highest Loss Streak 6 | . . . 2 1 . 1 6 To Critical Strikes 1 | . . . . . . . 1 Average Slot Usage (%) 85 | . 84 85 89 86 88 87 71 Engine 11 | . 14 14 11 11 11 11 8 Treads 27 | . 27 28 27 32 33 27 16 Wheel 1 | . . . 2 . . 4 4 Storage 11 | . 14 14 11 11 11 11 9 Processor 5 | . . . 2 11 11 11 8 Protection 3 | . . . 13 . . . . Ballistic Gun 19 | . 23 11 19 19 22 22 17 Launcher 1 | . . 13 . . . . . Special Weapon 1 | . 2 3 . 1 . . . Naked Turns . | . . . . . . . . Heaviest Build 110 | 13 33 33 110 94 94 94 103 Greatest Support 69 | 40 46 46 69 60 60 60 60 Greatest Overweight (x) 9 | . 4 . 4 2 1 5 9 Average Overweight (x) . | . . . 1 1 1 1 1 Largest Inventory Capacity 25 | 8 15 15 25 25 25 25 25 Average Capacity 19 | 6 10 15 20 25 25 25 25 Most Carried 19 | 3 10 11 19 19 16 16 16 Average Carried 13 | 1 8 10 14 16 16 15 13 Final Capacity 25 | 8 15 15 25 25 25 25 25 Final Carried 19 | 2 10 11 19 16 16 16 14 Class Distribution -------------------- 91% | Mutant 8% | Scavenger-Mutant Dominant Class ---------------- Mutant | -10/Materials Mutant | -10/Mines Mutant | -9/Materials Mutant | -9/Mines Mutant | -9/Exiles Mutant | -8/Mines Scavenger-Mutant | -8/Materials Resources | -11 -10 -10 -9 -9 -9 -8 -8 ----------- Run | Jun Mat Min Mat Min Exi Min Mat Matter Collected 2772 | 102 574 98 1191 34 . 313 460 Remotely . | . . . . . . . . Salvage Created 3698 | . 676 37 1823 72 . 423 667 Parts 245 | . 51 5 112 4 . 18 55 Haulers Intercepted 8 | . 1 . 6 . . . 1 Recyclers Shooed 4 | . 3 . . 1 . . . Parts Field Recycled . | . . . . . . . . Retrieved Matter . | . . . . . . . . Parts Self-Destructed . | . . . . . . . . Prevented . | . . . . . . . . Kills | -11 -10 -10 -9 -9 -9 -8 -8 ------- Run | Jun Mat Min Mat Min Exi Min Mat Combat Hostiles Destroyed 82 | . 16 6 33 4 . 6 17 Guns 69 | . 16 3 26 4 . 6 14 AOE 13 | . . 3 7 . . . 3 Classes Destroyed 16 | . 7 1 5 . . 1 2 Worker 3 | . 1 . 1 . . 1 . Builder 4 | . 2 . 2 . . . . Hauler 8 | . 1 . 6 . . . 1 Recycler 3 | . . . 1 . . 2 . Mechanic 1 | . . . 1 . . . . Operator 4 | . 2 . 2 . . . . Watcher 8 | . 2 . 4 . . . 2 Swarmer 23 | . 5 3 3 3 . 2 7 Grunt 37 | . 11 . 18 . . 3 5 Brawler 1 | . . . 1 . . . . Duelist 1 | . . . 1 . . . . Sentry 12 | . . . 10 . . . 2 Specialist 2 | . . . . . . . 2 Hunter 1 | . . . . . . 1 . Heavy 1 | . . . . . . . 1 Assembled 4 | . . 3 . 1 . . . Best Kill Streak 9 | . 3 3 6 3 . 5 9 Combat Bots Only 8 | . 3 3 6 3 . 3 8 Max Kills in Single Turn 3 | . 2 1 3 1 . 1 2 Gunslinging 1 | . 1 . . . . . . Exploded 3 | . . 1 3 . . . 2 Melee . | . . . . . . . . Uniques/NPCs Destroyed . | . . . . . . . . Combat | -11 -10 -10 -9 -9 -9 -8 -8 -------- Run | Jun Mat Min Mat Min Exi Min Mat Damage Taken 5672 | . 584 107 2545 182 . 602 1652 Core 1077 | . 109 9 266 46 . 87 560 Absorbed by Shields 143 | . . . . . . . 143 Regen/Repaired (Parts) 137 | . . . . . . . 137 Core Remaining (%) 50 | 100 . 52 . . . . . Volleys Fired 319 | . 61 17 150 14 . 18 59 Largest 2 | . 2 2 2 1 . 2 2 Hottest 100 | . 100 100 53 100 . 46 61 Shots Fired 549 | . 120 21 256 15 1 36 100 Gun 528 | . 119 15 248 13 1 36 96 Cannon . | . . . . . . . . Launcher 17 | . . 5 8 . . . 4 Special 4 | . 1 1 . 2 . . . Kinetic 511 | . 102 15 248 13 1 36 96 Thermal 21 | . 18 1 . 2 . . . Explosive 17 | . . 5 8 . . . 4 Electromagnetic . | . . . . . . . . Robot Hit Streak 31 | . 9 3 18 6 . 31 15 Robot Miss Streak 6 | . 6 3 3 1 . 1 2 Penetration Max . | . . . . . . . . Secondary Targets 14 | . 5 . 5 . . 1 3 Max Gunslinging Chain 1 | . 1 . 1 . . 1 1 Shots Hit Robots 373 | . 66 9 178 11 . 31 78 Core Hits 183 | . 37 8 79 5 . 18 36 Critical Kills 1 | . . . . . . . 1 Critical Parts Destroyed . | . . . . . . . . Critical Strikes 1 | . . . . . . . 1 Destroy 1 | . . . . . . . 1 Melee Attacks . | . . . . . . . . Impact . | . . . . . . . . Slashing . | . . . . . . . . Piercing . | . . . . . . . . Sneak Attacks . | . . . . . . . . Combat Hostiles . | . . . . . . . . Follow-up Attacks . | . . . . . . . . Damage Inflicted 6786 | . 923 300 3481 184 . 418 1480 Guns 5513 | . 915 92 2792 163 . 418 1133 Cannons . | . . . . . . . . Explosions 1164 | . . 208 609 . . . 347 Melee . | . . . . . . . . Ramming 109 | . 8 . 80 21 . . . Kinetic 5382 | . 784 92 2792 163 . 418 1133 Thermal 131 | . 131 . . . . . . Explosive 1164 | . . 208 609 . . . 347 Electromagnetic . | . . . . . . . . Impact . | . . . . . . . . Slashing . | . . . . . . . . Piercing . | . . . . . . . . Highest Corruption 6 | . . . 6 6 6 6 . Average Corruption 5 | . . . 5 6 6 6 . Corruption Purged . | . . . . . . . . Corruption Blocked . | . . . . . . . . Effects 94 | . . . 36 16 28 14 . Message Errors 32 | . . . 12 3 11 6 . Matter Fused 15 | . . . 5 3 5 2 . Heat Flow Errors 10 | . . . 4 1 2 3 . Energy Discharges 6 | . . . 2 1 3 . . Parts Rejected 3 | . . . 3 . . . . Parts Fused 3 | . . . 2 . 1 . . Data Loss (minor) 11 | . . . 3 4 3 1 . Data Loss (major) 5 | . . . 1 2 2 . . Misfires 5 | . . . 2 1 1 1 . Alerts 1 | . . . . 1 . . . Weapon Failures 3 | . . . 2 . . 1 . Overload Shots . | . . . . . . . . Overflow Damage 30 | . . 5 . . . . 25 Projectiles . | . . . . . . . . Explosions 30 | . . 5 . . . . 25 Melee . | . . . . . . . . Knockbacks 1 | . . . 1 . . . . Impact 1 | . . . 1 . . . . Kinetic . | . . . . . . . . Secondary . | . . . . . . . . Self-Inflicted Damage 33 | . . . 33 . . . . Shots . | . . . . . . . . Rammed 14 | . 4 . 9 1 . . . Targets Rammed 15 | . 5 . 9 1 . . . Kicked . | . . . . . . . . Crushed 1 | . 1 . . . . . . Highest Temperature 326 | . 162 34 326 231 266 248 13 Average Temperature 69 | . 31 12 81 72 137 88 6 Received Heat Transfer 1778 | . 204 20 1098 . . 108 348 Effects 5 | . . . 5 . . . . Interference 4 | . . . 4 . . . . Short Circuit 1 | . . . 1 . . . . Siege Activations . | . . . . . . . . Robots Corrupted . | . . . . . . . . Combat Hostiles . | . . . . . . . . Parts Fried . | . . . . . . . . Impact Corruptions . | . . . . . . . . Robots Melted . | . . . . . . . . Combat Hostiles . | . . . . . . . . Parts Melted . | . . . . . . . . Heat Transferred 300 | . 300 . . . . . . Parts Sabotaged . | . . . . . . . . Parts Stolen . | . . . . . . . . Parts Stripped . | . . . . . . . . Power Chain Reactions . | . . . . . . . . Missiles Intercepted . | . . . . . . . . Alert | -11 -10 -10 -9 -9 -9 -8 -8 ------- Run | Jun Mat Min Mat Min Exi Min Mat Peak Influence 520 | . 255 134 520 302 . 165 359 Initial 202 | . . 30 . 202 . . 1 Average 182 | . 114 40 308 192 . 30 182 Maximum Alert Level 2 | . 1 . 2 1 . . 1 Low Security (%) 61 | 100 93 100 18 44 . 100 68 Level 1 29 | . 6 . 52 55 . . 31 Level 2 9 | . . . 28 . . . . Level 3 . | . . . . . . . . Level 4 . | . . . . . . . . Level 5 . | . . . . . . . . High Security . | . . . . . . . . Max Security . | . . . . . . . . Squads Dispatched 12 | . 5 . 4 . . . 3 Investigation 4 | . 3 . 1 . . . . Extermination . | . . . . . . . . Reinforcement 8 | . 2 . 3 . . . 3 Assault . | . . . . . . . . Garrison . | . . . . . . . . Intercept . | . . . . . . . . Searches Triggered . | . . . . . . . . Construction Impeded . | . . . . . . . . Haulers Reinforced . | . . . . . . . . Active Scanning Responses . | . . . . . . . . Cargo Convoy Interrupts . | . . . . . . . . Stealth | -11 -10 -10 -9 -9 -9 -8 -8 --------- Run | Jun Mat Min Mat Min Exi Min Mat Distress Signals 4 | . 2 . 1 . . . 1 Communications Jammed . | . . . . . . . . Distress Signals . | . . . . . . . . Times Spotted 123 | . 28 7 48 6 . 7 27 Peak Tracking Total 6 | . 4 3 6 4 . 3 6 Tactical Retreats 4 | . . 1 . 2 . 1 . Traps | -11 -10 -10 -9 -9 -9 -8 -8 ------- Run | Jun Mat Min Mat Min Exi Min Mat Traps Triggered 5 | . 4 . . . . . 1 Indirectly . | . . . . . . . . Trap Hack Attempts . | . . . . . . . . Triggered . | . . . . . . . . Disarmed . | . . . . . . . . Reprogrammed . | . . . . . . . . Reused . | . . . . . . . . Traps Extracted . | . . . . . . . . Installed . | . . . . . . . . Triggered . | . . . . . . . . Machines | -11 -10 -10 -9 -9 -9 -8 -8 ---------- Run | Jun Mat Min Mat Min Exi Min Mat Machines Disabled 1 | . . 1 . . . . . Max in Single Turn 1 | . . 1 . . . . . Machines Repaired . | . . . . . . . . Machines Sabotaged . | . . . . . . . . Overloaded Fab Kills . | . . . . . . . . Hacking | -11 -10 -10 -9 -9 -9 -8 -8 --------- Run | Jun Mat Min Mat Min Exi Min Mat Machines Accessed 26 | . 7 1 8 . 4 1 5 Terminals 14 | . 5 . 6 . . 1 2 Fabricators . | . . . . . . . . Repair Stations 1 | . . . . . . . 1 Recycling Units 4 | . 2 . 1 . . . 1 Scanalyzers 2 | . . . 1 . . . 1 Garrison Access . | . . . . . . . . Total Hacks 47 | . 16 1 16 . 4 1 9 Successful 20 | . 6 1 4 . 4 . 5 Failed 27 | . 10 . 12 . . 1 4 Catastrophic 5 | . 1 . 3 . . . 1 Database Lockouts . | . . . . . . . . Manual 14 | . 5 . 6 . . 1 2 Terminals 22 | . 8 . 11 . . 1 2 Fabricators . | . . . . . . . . Repair Stations 2 | . . . . . . . 2 Recycling Units 11 | . 8 . 1 . . . 2 Scanalyzers 7 | . . . 4 . . . 3 Garrison Access . | . . . . . . . . Terminal Hacks 10 | . 3 1 1 . 4 . 1 Record 4 | . . . . . 4 . . Robot Analysis 2 | . 2 . . . . . . Open Door 1 | . . 1 . . . . . Level Access Points 1 | . . . . . . . 1 Branch Access Points 2 | . 1 . 1 . . . . Fabricator Hacks . | . . . . . . . . Repair Station Hacks 2 | . . . . . . . 2 Scan Component 1 | . . . . . . . 1 Repair 1 | . . . . . . . 1 Recycling Unit Hacks 5 | . 3 . 1 . . . 1 Report Inventory 3 | . 1 . 1 . . . 1 Retrieve Matter 2 | . 2 . . . . . . Scanalyzer 3 | . . . 2 . . . 1 Insert Component 2 | . . . 1 . . . 1 Analyze 1 | . . . 1 . . . . Garrison Access Hacks . | . . . . . . . . Unauthorized Hacks . | . . . . . . . . Terminals . | . . . . . . . . Fabricators . | . . . . . . . . Repair Stations . | . . . . . . . . Recycling Units . | . . . . . . . . Scanalyzers . | . . . . . . . . Garrison Access . | . . . . . . . . Data Cores Recovered . | . . . . . . . . Used . | . . . . . . . . Hacking Detections 15 | . 5 . 7 . . . 3 Full Trace Events 3 | . 1 . 2 . . . . Feedback Events . | . . . . . . . . Feedback Blocked . | . . . . . . . . Robot Schematics Acquired . | . . . . . . . . Robots Built . | . . . . . . . . Authchips . | . . . . . . . . Time . | . . . . . . . . Total Robot Build Rating . | . . . . . . . . Part Schematics Acquired 1 | . . . 1 . . . . Parts Built . | . . . . . . . . Authchips . | . . . . . . . . Time . | . . . . . . . . Total Part Build Rating . | . . . . . . . . Parts Repaired 1 | . . . . . . . 1 Time 26 | . . . . . . . 26 Parts Recycled . | . . . . . . . . Recycled Matter . | . . . . . . . . Retrieved Matter . | . . . . . . . . Retrieved Components . | . . . . . . . . Parts Scanalyzed 1 | . . . 1 . . . . Part Schematics Acquired 1 | . . . 1 . . . . Parts Damaged . | . . . . . . . . Bothacking | -11 -10 -10 -9 -9 -9 -8 -8 ------------ Run | Jun Mat Min Mat Min Exi Min Mat Used RIF Installer . | . . . . . . . . Robots Hacked . | . . . . . . . . Non-combat . | . . . . . . . . Combat . | . . . . . . . . Robot Hacks Applied . | . . . . . . . . Relay Couplers Released . | . . . . . . . . Fabnet Peak Effective % . | . . . . . . . . Robots Rewired . | . . . . . . . . Allies Hacked . | . . . . . . . . Hacks Repelled . | . . . . . . . . Allies | -11 -10 -10 -9 -9 -9 -8 -8 -------- Run | Jun Mat Min Mat Min Exi Min Mat Total Allies . | . . . . . . . . Largest Group . | . . . . . . . . Highest-Rated Group . | . . . . . . . . Highest-Rated Ally . | . . . . . . . . Total Orders . | . . . . . . . . Ally Attacks . | . . . . . . . . Total Damage . | . . . . . . . . Kills . | . . . . . . . . Allies Corrupted . | . . . . . . . . Allies Melted . | . . . . . . . . Intel | -11 -10 -10 -9 -9 -9 -8 -8 ------- Run | Jun Mat Min Mat Min Exi Min Mat Robot Analysis Total 2 | . 2 . . . . . . Derelict Logs Recovered . | . . . . . . . . Drone Launches . | . . . . . . . . Drone Recoveries . | . . . . . . . . Exploration | -11 -10 -10 -9 -9 -9 -8 -8 ------------- Run | Jun Mat Min Mat Min Exi Min Mat Turns Passed 7389 | 62 1488 516 1973 716 1174 465 995 Spaces Moved 3126 | 35 784 295 745 280 490 184 313 Core 9 | 6 3 . . . . . . Treads 2795 | 29 781 295 563 280 490 136 221 Legs . | . . . . . . . . Wheels 322 | . . . 182 . . 48 92 Hover . | . . . . . . . . Flight . | . . . . . . . . Fastest Speed 50 | 50 160 160 95 240 240 123 123 Average Speed 200 | 141 160 160 196 240 240 212 245 Slowest Speed 325 | 160 250 160 320 320 240 320 325 Overloaded Moves . | . . . . . . . . Propulsion Burnouts . | . . . . . . . . Robots Hopped . | . . . . . . . . Cave-ins Triggered . | . . . . . . . . Exploration Rate (%) 59 | 3 99 66 79 64 78 52 36 Regions Visited 7 Branch Regions 4 Pre-discovered Areas . | . . . . . . . . Known Exits Taken 2 | . 1 . 1 . . . . Unknown Exits Taken 5 | 1 . 1 . 1 1 1 . Scrap Searched 1 | . . . . . . 1 . Spaces Dug 1 | . 1 . . . . . . Terrain Destroyed 123 | . 1 43 35 . . . 44 Melee . | . . . . . . . . Projectile 2 | . 1 1 . . . . . AOE 121 | . . 42 35 . . . 44 Terrain Rammed . | . . . . . . . . Walls Destroyed . | . . . . . . . . Machines Disabled . | . . . . . . . . Actions | -11 -10 -10 -9 -9 -9 -8 -8 --------- Run | Jun Mat Min Mat Min Exi Min Mat Total 3737 | 45 912 319 1010 303 489 221 438 Wait 129 | 1 24 2 47 5 . 10 40 Move 3119 | 34 783 294 744 279 489 183 313 Hop . | . . . . . . . . Pick Up 46 | 2 17 1 17 . . 2 7 Fast Attach 38 | 6 4 1 18 . . 3 6 Attach 25 | 1 7 1 5 2 . 1 8 Detach 3 | 1 . 1 1 . . . . Swap 13 | . 2 1 6 2 . 1 1 Drop 30 | . 9 1 13 . . 3 4 Fire 319 | . 61 17 150 14 . 18 59 Melee . | . . . . . . . . Ram 8 | . . . 8 . . . . Kick . | . . . . . . . . Crush 7 | . 5 . 1 1 . . . Escape Stasis . | . . . . . . . . Rewire . | . . . . . . . . Trap . | . . . . . . . . Miscellaneous . | . . . . . . . . Route ------- -11/Junkyard -10/Materials (discovered 4 exits: *Mat x3 / *Min) -10/Mines (discovered 2 exits: *Mat x2) -9/Materials (discovered 4 exits: *Mat x2 / *Min x2) -9/Mines (discovered 3 exits: *Mat x2 / *Exi) -9/Exiles -8/Mines -8/Materials (discovered 3 exits: Fac x3) History --------- Turn | Location | Event 6 | -11/Junkyard | Discovered new exit (range 15) 63 | -11/Junkyard | Entered Materials 255 | -10/Materials | Identified exit to Mines 307 | -10/Materials | Build established: Mutant 427 | -10/Materials | Discovered new exit (range 16) 913 | -10/Materials | Discovered new exit (range 16) 1466 | -10/Materials | Discovered new exit (range 11) 1551 | -10/Materials | Entered Mines 1581 | -10/Mines | Assembled infested the area 1586 | -10/Mines | Assisted by a Guerilla fighting off Assembled 1868 | -10/Mines | Discovered new exit (range 8) 1885 | -10/Mines | Found the Drone Emporium 1930 | -10/Mines | Found Prototype Device 1930 | -10/Mines | Identified Splice Drone Bay 1938 | -10/Mines | Discovered new exit (range 8) 2067 | -10/Mines | Entered Materials 2067 | -9/Materials | Evolved 2 slots: Propulsion x1, Utility x1 2742 | -9/Materials | Discovered new exit (range 10) 3016 | -9/Materials | Discovered new exit (range 16) 3621 | -9/Materials | Core integrity fell below 50% 3681 | -9/Materials | Discovered new exit (range 6) 3769 | -9/Materials | Identified exit to Mines 3783 | -9/Materials | Discovered new exit (range 13) 4040 | -9/Materials | Entered Mines 4043 | -9/Mines | Met a Derelict bent on vengeance 4124 | -9/Mines | Discovered new exit (range 8) 4224 | -9/Mines | Excavation squad dispatched 4224 | -9/Mines | A large section of the Mines collapsed 4650 | -9/Mines | Discovered new exit (range 5) 4744 | -9/Mines | Deemed a non-threat by the Exiles lab entrance 4746 | -9/Mines | Discovered new exit (range 5) 4756 | -9/Mines | Entered Exiles 4756 | -9/Exiles | Found Exiles lab abandoned 5899 | -9/Exiles | Discovered new exit (range 14) 5930 | -9/Exiles | Entered Mines 6050 | -8/Mines | Core integrity fell below 20% 6384 | -8/Mines | Discovered new exit (range 10) 6395 | -8/Mines | Entered Materials 6395 | -8/Materials | Evolved 2 slots: Utility x2 6511 | -8/Materials | Destroyed 8 combat bots 6581 | -8/Materials | Core integrity fell below 50% 6616 | -8/Materials | Lost 6 parts (1p1n1u3w) 6634 | -8/Materials | Core integrity fell below 20% 6901 | -8/Materials | Repaired Lgt. Treads 7133 | -8/Materials | Identified exit to Factory 7210 | -8/Materials | Build established: Scavenger-Mutant 7390 | -8/Materials | Destroyed by G-50 Soldier with Heavy Laser Last Messages --------------- 07347_ G-47 Trooper suffers critical hit (Destroy). 07347_ G-47 Trooper destroyed. 07347_ Switching to secondary target: G-47 Trooper. 07349_ Critical hit (Burn: +26). 07354_ R-06 Scavenger collects Particle Gun. 07356_ G-47 Trooper destroyed. 07357_ R-06 Scavenger collects Imp. Heat Sink. 07359_ Acquired 56 matter. 07360_ R-06 Scavenger collects Lgt. Nuclear Core. 07362_ Acquired 39 matter. 07370_ K-01 Serf collects debris. 07375_ K-01 Serf cleans the Integration Channel. 07377_ K-01 Serf collects debris. 07378_ K-01 Serf cleans the Integration Channel. 07381_ K-01 Serf collects debris. 07383_ K-01 Serf cleans the Integration Channel. 07385_ K-01 Serf collects debris. 07386_ K-01 Serf cleans the Integration Channel. 07389_ Critical hit (Burn: +26). 07390_ K-01 Serf collects debris. Map ----- +----------------------------------------------------+ | ????????????????????????????????????????? | | ????????????????????????????????????????? | | ???????????????????????????